[Event "Live Chess"]
[Site "Chess.com"]
[Date "2023.05.21"]
[Round "-"]
[White "ItsNot_Jasper"]
[Black "MarkLim1"]
[Result "0-1"]
[WhiteElo "1392"]
[BlackElo "1696"]
[TimeControl "300"]
[EndTime "4:17:33 PDT"]
[Termination "MarkLim1 won by resignation"]

1. d4 {[%clk 0:04:57.8]} 1... Nf6 {[%clk 0:04:59.1]} 2. c4 {[%clk 0:04:56.8]}
2... e6 {[%clk 0:04:58.3]} 3. Nc3 {[%clk 0:04:55.6]} 3... d5 {[%clk 0:04:57.5]}
4. Nf3 {[%clk 0:04:54.3]} 4... c5 {[%clk 0:04:56.5]} 5. e3 {[%clk 0:04:51.4]}
5... a6 {[%clk 0:04:55.2]} 6. cxd5 {[%clk 0:04:50.3]} 6... Nxd5 {[%clk
0:04:54.1]} 7. Nxd5 {[%clk 0:04:49]} 7... Qxd5 {[%clk 0:04:51.6]} 8. Be2 {[%clk
0:04:48.5]} 8... cxd4 {[%clk 0:04:50.9]} 9. Qxd4 {[%clk 0:04:46.7]} 9... Qxd4
{[%clk 0:04:45.8]} 10. Nxd4 {[%clk 0:04:46.6]} 10... Bb4+ {[%clk 0:04:43.7]} 11.
Bd2 {[%clk 0:04:43.7]} 11... Bxd2+ {[%clk 0:04:42.1]} 12. Kxd2 {[%clk
0:04:43.6]} 12... O-O {[%clk 0:04:41.3]} 13. Rac1 {[%clk 0:04:42.7]} 13... Rd8
{[%clk 0:04:40.3]} 14. Ke1 {[%clk 0:04:41.5]} 14... Nd7 {[%clk 0:04:35]} 15. f3
{[%clk 0:04:40.2]} 15... Nf6 {[%clk 0:04:34]} 16. Kf2 {[%clk 0:04:39.2]} 16...
Bd7 {[%clk 0:04:26.7]} 17. Rc7 {[%clk 0:04:37.1]} 17... Rab8 {[%clk 0:04:24.7]}
18. Rhc1 {[%clk 0:04:33.2]} 18... Nd5 {[%clk 0:04:23.7]} 19. R7c2 {[%clk
0:04:29.8]} 19... Rdc8 {[%clk 0:04:21.7]} 20. Rxc8+ {[%clk 0:04:25.2]} 20...
Rxc8 {[%clk 0:04:20.9]} 21. Rxc8+ {[%clk 0:04:25.1]} 21... Bxc8 {[%clk 0:04:20]}
22. Bc4 {[%clk 0:04:23.4]} 22... Nb6 {[%clk 0:04:14.6]} 23. Bb3 {[%clk
0:04:21.7]} 23... Kf8 {[%clk 0:04:13.8]} 24. e4 {[%clk 0:04:20.3]} 24... Ke7
{[%clk 0:04:12.9]} 25. Ke3 {[%clk 0:04:19.5]} 25... g6 {[%clk 0:04:10.5]} 26. g4
{[%clk 0:04:18]} 26... e5 {[%clk 0:04:09.5]} 27. Ne2 {[%clk 0:04:15.1]} 27... f6
{[%clk 0:04:07.1]} 28. Kf2 {[%clk 0:04:13.2]} 28... Kd6 {[%clk 0:04:05.3]} 29.
Nc3 {[%clk 0:04:12.2]} 29... Bd7 {[%clk 0:03:59.1]} 30. Nd5 {[%clk 0:04:08.5]}
30... Nxd5 {[%clk 0:03:57.7]} 31. Bxd5 {[%clk 0:04:08.4]} 31... b6 {[%clk
0:03:55.7]} 32. h4 {[%clk 0:04:07.4]} 32... a5 {[%clk 0:03:53]} 33. h5 {[%clk
0:04:06.3]} 33... g5 {[%clk 0:03:50.7]} 34. h6 {[%clk 0:04:02.5]} 34... Be6
{[%clk 0:03:47.5]} 35. Bxe6 {[%clk 0:03:55.8]} 35... Kxe6 {[%clk 0:03:46.7]} 36.
Ke3 {[%clk 0:03:55.1]} 36... Kd6 {[%clk 0:03:45.7]} 37. Kd3 {[%clk 0:03:53.9]}
37... Kc5 {[%clk 0:03:44.3]} 38. Kc3 {[%clk 0:03:52]} 38... a4 {[%clk
0:03:38.3]} 39. b3 {[%clk 0:03:48.3]} 39... Kb5 {[%clk 0:03:33.2]} 40. a3 {[%clk
0:03:35.8]} 40... axb3 {[%clk 0:03:31.8]} 41. Kxb3 {[%clk 0:03:35.7]} 41... Kc5
{[%clk 0:03:28.4]} 42. Kc3 {[%clk 0:03:34.7]} 42... Kb5 {[%clk 0:03:24.3]} 43.
Kb3 {[%clk 0:03:34]} 43... Ka5 {[%clk 0:03:22.8]} 44. Kc4 {[%clk 0:03:32.1]}
44... Ka4 {[%clk 0:03:17.2]} 45. Kd5 {[%clk 0:03:31.1]} 45... Kxa3 {[%clk
0:03:15.6]} 46. Kc6 {[%clk 0:03:30.1]} 46... Kb3 {[%clk 0:03:12.4]} 47. Kxb6
{[%clk 0:03:29.7]} 47... Kc4 {[%clk 0:03:11.6]} 48. Kc6 {[%clk 0:03:29.3]} 48...
Kd3 {[%clk 0:03:11]} 49. Kd6 {[%clk 0:03:28.5]} 49... Ke3 {[%clk 0:03:10.5]} 50.
Ke6 {[%clk 0:03:28]} 50... Kxf3 {[%clk 0:03:09.8]} 51. Kxf6 {[%clk 0:03:27.6]}
51... Kxg4 {[%clk 0:03:01.9]} 52. Kg7 {[%clk 0:03:26.8]} 52... Kf4 {[%clk
0:02:59.5]} 53. Kxh7 {[%clk 0:03:26.2]} 53... g4 {[%clk 0:02:59.4]} 54. Kg7
{[%clk 0:03:24.1]} 54... g3 {[%clk 0:02:59.3]} 55. h7 {[%clk 0:03:23.7]} 55...
g2 {[%clk 0:02:58.2]} 56. h8=Q {[%clk 0:03:23.2]} 56... g1=Q+ {[%clk 0:02:57.4]}
57. Kf8 {[%clk 0:03:22.4]} 57... Qc5+ {[%clk 0:02:53.9]} 58. Kg8 {[%clk
0:03:20.1]} 58... Qc8+ {[%clk 0:02:52.6]} 59. Kg7 {[%clk 0:03:19]} 59... Qxh8+
{[%clk 0:02:51.7]} 60. Kxh8 {[%clk 0:03:18.3]} 60... Kxe4 {[%clk 0:02:51.1]} 61.
Kg7 {[%clk 0:03:18]} 61... Kf3 {[%clk 0:02:50.4]} 62. Kg6 {[%clk 0:03:17.6]}
62... e4 {[%clk 0:02:50.3]} 0-1

[Event "Live Chess"]
[Site "Chess.com"]
[Date "2023.05.21"]
[Round "-"]
[White "Missedidea"]
[Black "Nakula1000"]
[Result "0-1"]
[WhiteElo "1830"]
[BlackElo "533"]
[TimeControl "300"]
[EndTime "4:17:39 PDT"]
[Termination "Nakula1000 won by resignation"]

1. d4 {[%clk 0:04:58.8]} 1... Nf6 {[%clk 0:04:56.9]} 2. c4 {[%clk 0:04:57.6]}
2... e6 {[%clk 0:04:54.3]} 3. Nc3 {[%clk 0:04:56]} 3... d5 {[%clk 0:04:51.7]} 4.
Bg5 {[%clk 0:04:53.3]} 4... c6 {[%clk 0:04:48]} 5. e3 {[%clk 0:04:52.3]} 5...
Nbd7 {[%clk 0:04:45]} 6. Nf3 {[%clk 0:04:51.1]} 6... Bb4 {[%clk 0:04:40.6]} 7.
Qc2 {[%clk 0:04:42]} 7... h6 {[%clk 0:04:36.9]} 8. Bh4 {[%clk 0:04:39.3]} 8...
Qa5 {[%clk 0:04:30.9]} 9. Nd2 {[%clk 0:04:32.5]} 9... b6 {[%clk 0:04:26.7]} 10.
cxd5 {[%clk 0:04:25]} 10... cxd5 {[%clk 0:04:24.1]} 11. Bd3 {[%clk 0:04:19.5]}
11... Ba6 {[%clk 0:04:21]} 12. O-O {[%clk 0:04:16.7]} 12... Bxc3 {[%clk
0:04:18.9]} 13. bxc3 {[%clk 0:04:13.2]} 13... Bxd3 {[%clk 0:04:16.4]} 14. Qxd3
{[%clk 0:04:11]} 14... Qa3 {[%clk 0:04:14.5]} 15. Rfb1 {[%clk 0:03:59.4]} 15...
O-O {[%clk 0:04:11.5]} 16. Rb3 {[%clk 0:03:57.4]} 16... Qa4 {[%clk 0:04:08.4]}
17. c4 {[%clk 0:03:44.9]} 17... Rac8 {[%clk 0:04:05.6]} 18. cxd5 {[%clk
0:03:30]} 18... Nxd5 {[%clk 0:04:03.1]} 19. h3 {[%clk 0:03:19.5]} 19... a5
{[%clk 0:04:00.1]} 20. Ne4 {[%clk 0:03:06.8]} 20... Qc6 {[%clk 0:03:51.8]} 21.
Bg3 {[%clk 0:02:56.2]} 21... Nb4 {[%clk 0:03:50]} 22. Qb1 {[%clk 0:02:47.1]}
22... Nc2 {[%clk 0:03:48.2]} 23. Nd6 {[%clk 0:02:36.9]} 23... Rc7 {[%clk
0:03:44.5]} 24. e4 {[%clk 0:02:09.6]} 24... Nxa1 {[%clk 0:03:42.2]} 25. Qxa1
{[%clk 0:02:07.4]} 25... Qc1+ {[%clk 0:03:38.1]} 26. Qxc1 {[%clk 0:02:05.8]}
26... Rxc1+ {[%clk 0:03:36.1]} 27. Kh2 {[%clk 0:02:04.7]} 27... Rd1 {[%clk
0:03:34.5]} 28. Nb5 {[%clk 0:01:50.9]} 28... Rd2 {[%clk 0:03:31.9]} 29. a4
{[%clk 0:01:48.2]} 29... Rc8 {[%clk 0:03:29.5]} 30. Bc7 {[%clk 0:01:31.9]} 30...
Ra2 {[%clk 0:03:26.9]} 31. d5 {[%clk 0:01:25.1]} 31... exd5 {[%clk 0:03:24.9]}
32. exd5 {[%clk 0:01:23]} 32... Rxa4 {[%clk 0:03:23]} 33. d6 {[%clk 0:01:18.9]}
33... Rb4 {[%clk 0:03:20.3]} 34. Rxb4 {[%clk 0:01:14.8]} 34... axb4 {[%clk
0:03:20.2]} 35. Na7 {[%clk 0:01:10.7]} 35... Re8 {[%clk 0:03:18]} 36. Nc6 {[%clk
0:01:07.9]} 36... b3 {[%clk 0:03:16.4]} 37. Ne7+ {[%clk 0:00:56.9]} 37... Kh7
{[%clk 0:03:14.4]} 38. Nd5 {[%clk 0:00:55.7]} 38... b2 {[%clk 0:03:12.9]} 39.
Nc3 {[%clk 0:00:54.6]} 39... Re1 {[%clk 0:03:11]} 40. Kg3 {[%clk 0:00:51.6]}
40... Rc1 {[%clk 0:03:08.3]} 41. Ne2 {[%clk 0:00:41.6]} 41... Rc2 {[%clk
0:03:01.6]} 42. Nd4 {[%clk 0:00:30.3]} 42... Rc3+ {[%clk 0:02:57.4]} 0-1

[Event "Live Chess"]
[Site "Chess.com"]
[Date "2023.05.21"]
[Round "-"]
[White "YrrriKharkiv"]
[Black "FlorinHristea"]
[Result "1-0"]
[WhiteElo "2064"]
[BlackElo "1815"]
[TimeControl "300"]
[EndTime "4:17:54 PDT"]
[Termination "YrrriKharkiv won by resignation"]

1. d4 {[%clk 0:04:58.2]} 1... d5 {[%clk 0:04:57.7]} 2. Nf3 {[%clk 0:04:57.6]}
2... Nc6 {[%clk 0:04:57.2]} 3. c4 {[%clk 0:04:56.6]} 3... Bg4 {[%clk 0:04:56.6]}
4. e3 {[%clk 0:04:54.2]} 4... Nf6 {[%clk 0:04:56]} 5. Nc3 {[%clk 0:04:50]} 5...
e6 {[%clk 0:04:55.6]} 6. Qb3 {[%clk 0:04:47.1]} 6... Rb8 {[%clk 0:04:46.6]} 7.
cxd5 {[%clk 0:04:44.2]} 7... Nxd5 {[%clk 0:04:43]} 8. e4 {[%clk 0:04:31.7]} 8...
Nxc3 {[%clk 0:04:37.7]} 9. bxc3 {[%clk 0:04:30.4]} 9... Be7 {[%clk 0:04:34.1]}
10. Be2 {[%clk 0:04:19.9]} 10... O-O {[%clk 0:04:33.2]} 11. Be3 {[%clk
0:04:16.8]} 11... b6 {[%clk 0:04:31.9]} 12. Rd1 {[%clk 0:04:06.8]} 12... Bh5
{[%clk 0:04:22.2]} 13. Qa4 {[%clk 0:03:58.5]} 13... Bg6 {[%clk 0:04:17.9]} 14.
Qxc6 {[%clk 0:03:56]} 14... a5 {[%clk 0:04:14.8]} 15. Ne5 {[%clk 0:03:54]} 1-0

[Event "Live Chess"]
[Site "Chess.com"]
[Date "2023.05.21"]
[Round "-"]
[White "manthanit"]
[Black "ZackirtyChess"]
[Result "0-1"]
[WhiteElo "1080"]
[BlackElo "1189"]
[TimeControl "300"]
[EndTime "4:18:08 PDT"]
[Termination "ZackirtyChess won by resignation"]

1. e4 {[%clk 0:04:45.1]} 1... e5 {[%clk 0:04:50]} 2. Nf3 {[%clk 0:04:43.1]} 2...
Nf6 {[%clk 0:04:47.9]} 3. Nc3 {[%clk 0:04:39.1]} 3... Nc6 {[%clk 0:04:44.5]} 4.
h3 {[%clk 0:04:38]} 4... d5 {[%clk 0:04:41.3]} 5. exd5 {[%clk 0:04:27.4]} 5...
Nxd5 {[%clk 0:04:41.2]} 6. Nxd5 {[%clk 0:04:19]} 6... Qxd5 {[%clk 0:04:41.1]} 7.
b3 {[%clk 0:04:12.8]} 7... e4 {[%clk 0:04:38.9]} 8. Ng1 {[%clk 0:04:04.4]} 8...
Bc5 {[%clk 0:04:31]} 9. Bb2 {[%clk 0:03:58.5]} 9... O-O {[%clk 0:04:28.3]} 10.
Be2 {[%clk 0:03:47.8]} 10... Bf5 {[%clk 0:04:23.1]} 11. h4 {[%clk 0:03:44.7]}
11... h6 {[%clk 0:04:18.9]} 12. Nh3 {[%clk 0:03:43.6]} 12... Rad8 {[%clk
0:04:16.7]} 13. Bc3 {[%clk 0:03:30]} 13... Bd4 {[%clk 0:04:13.1]} 14. O-O {[%clk
0:03:19]} 14... Bxc3 {[%clk 0:04:08.3]} 15. dxc3 {[%clk 0:03:17.9]} 15... Qxd1
{[%clk 0:04:07.6]} 16. Raxd1 {[%clk 0:03:15.2]} 16... e3 {[%clk 0:04:06.3]} 17.
fxe3 {[%clk 0:03:05.8]} 17... Bxc2 {[%clk 0:04:04.4]} 18. Rxd8 {[%clk
0:02:48.2]} 18... Rxd8 {[%clk 0:04:01.4]} 19. Bh5 {[%clk 0:02:47]} 19... g6
{[%clk 0:03:57.5]} 20. Be2 {[%clk 0:02:31.8]} 20... Rd2 {[%clk 0:03:44.2]} 21.
Bc4 {[%clk 0:02:26.7]} 21... Be4 {[%clk 0:03:26.1]} 22. Bxf7+ {[%clk 0:02:17.1]}
22... Kg7 {[%clk 0:03:24]} 23. Nf2 {[%clk 0:01:01.8]} 23... Bd5 {[%clk
0:02:58.5]} 24. Be6 {[%clk 0:00:57]} 24... Bxe6 {[%clk 0:02:28.6]} 25. Ne4
{[%clk 0:00:45.2]} 25... Rxa2 {[%clk 0:02:25.9]} 26. Nf6 {[%clk 0:00:39.8]}
26... Bxb3 {[%clk 0:02:23.9]} 27. Ne8+ {[%clk 0:00:38.4]} 27... Kg8 {[%clk
0:02:21.3]} 28. Nxc7 {[%clk 0:00:35.1]} 28... Bc2 {[%clk 0:02:15.8]} 29. Ne6
{[%clk 0:00:28.7]} 29... Bf5 {[%clk 0:02:11.1]} 30. Nf4 {[%clk 0:00:22.9]} 30...
g5 {[%clk 0:02:08.9]} 31. Nh5 {[%clk 0:00:16.6]} 31... Bd3 {[%clk 0:02:03.9]}
32. Nf6+ {[%clk 0:00:15.1]} 32... Kg7 {[%clk 0:02:00.2]} 33. Nd7 {[%clk
0:00:13.9]} 33... Bxf1 {[%clk 0:01:57.7]} 34. Kxf1 {[%clk 0:00:12.2]} 34... Ne5
{[%clk 0:01:55.4]} 0-1

[Event "Live Chess"]
[Site "Chess.com"]
[Date "2023.05.21"]
[Round "-"]
[White "CheckThis4"]
[Black "vovanada"]
[Result "1-0"]
[WhiteElo "2506"]
[BlackElo "825"]
[TimeControl "300"]
[EndTime "4:18:22 PDT"]
[Termination "CheckThis4 won by resignation"]

1. d4 {[%clk 0:04:58.5]} 1... d5 {[%clk 0:04:58.2]} 2. Nc3 {[%clk 0:04:57.8]}
2... Nf6 {[%clk 0:04:55.7]} 3. Bg5 {[%clk 0:04:56.1]} 3... h6 {[%clk 0:04:53.7]}
4. Bh4 {[%clk 0:04:52.4]} 4... Bf5 {[%clk 0:04:43.6]} 5. f3 {[%clk 0:04:50.9]}
5... e6 {[%clk 0:04:43.1]} 6. e4 {[%clk 0:04:49.1]} 6... dxe4 {[%clk 0:04:36.6]}
7. fxe4 {[%clk 0:04:47.8]} 7... Bg6 {[%clk 0:04:23.6]} 8. e5 {[%clk 0:04:46.6]}
8... Be7 {[%clk 0:04:07.6]} 9. exf6 {[%clk 0:04:44.8]} 9... Bxf6 {[%clk
0:04:07.5]} 10. Bxf6 {[%clk 0:04:44]} 10... Qxf6 {[%clk 0:04:05.2]} 11. Nf3
{[%clk 0:04:43.6]} 11... O-O {[%clk 0:03:56.6]} 12. Bd3 {[%clk 0:04:42.7]} 12...
Bxd3 {[%clk 0:03:49.4]} 13. Qxd3 {[%clk 0:04:42.6]} 13... Nc6 {[%clk 0:03:45.8]}
14. O-O {[%clk 0:04:40.7]} 14... Rad8 {[%clk 0:03:40.9]} 15. Rad1 {[%clk
0:04:38.8]} 15... a5 {[%clk 0:03:39.6]} 16. Ne4 {[%clk 0:04:36.1]} 16... Qf5
{[%clk 0:03:23.6]} 17. Nc5 {[%clk 0:04:33.1]} 17... b6 {[%clk 0:03:11.6]} 18.
Qxf5 {[%clk 0:04:31.1]} 18... exf5 {[%clk 0:03:11.5]} 19. Nb3 {[%clk 0:04:18.9]}
19... Nb4 {[%clk 0:03:07.7]} 20. c3 {[%clk 0:04:17]} 20... Nc2 {[%clk
0:03:03.7]} 21. Rd3 {[%clk 0:04:10.4]} 21... a4 {[%clk 0:02:57.3]} 22. Na1
{[%clk 0:04:08.6]} 22... a3 {[%clk 0:02:55]} 23. Nxc2 {[%clk 0:04:06.7]} 23...
axb2 {[%clk 0:02:51.2]} 24. Rb1 {[%clk 0:04:05.5]} 24... Rd7 {[%clk 0:02:42.8]}
25. Rxb2 {[%clk 0:04:04.7]} 25... Re8 {[%clk 0:02:42.3]} 26. Kf2 {[%clk
0:04:01.7]} 26... Rde7 {[%clk 0:02:41.5]} 27. Ne3 {[%clk 0:03:59]} 27... f4
{[%clk 0:02:37.2]} 28. Nd5 {[%clk 0:03:58]} 28... Re6 {[%clk 0:02:31.3]} 29.
Nxf4 {[%clk 0:03:57]} 29... Rf6 {[%clk 0:02:24.7]} 30. Re2 {[%clk 0:03:55.1]}
30... Rxe2+ {[%clk 0:02:22.5]} 31. Nxe2 {[%clk 0:03:55]} 1-0

[Event "Live Chess"]
[Site "Chess.com"]
[Date "2023.05.21"]
[Round "-"]
[White "GMMickeyAdams"]
[Black "domrobson"]
[Result "1-0"]
[WhiteElo "2796"]
[BlackElo "1712"]
[TimeControl "300"]
[EndTime "4:18:23 PDT"]
[Termination "GMMickeyAdams won by resignation"]

1. e4 {[%clk 0:04:57.3]} 1... e5 {[%clk 0:04:58.8]} 2. Nf3 {[%clk 0:04:55.5]}
2... Nc6 {[%clk 0:04:58.2]} 3. Bb5 {[%clk 0:04:53.1]} 3... a6 {[%clk 0:04:56.6]}
4. Ba4 {[%clk 0:04:51.6]} 4... Nf6 {[%clk 0:04:56.3]} 5. d3 {[%clk 0:04:50]}
5... d6 {[%clk 0:04:54.7]} 6. O-O {[%clk 0:04:45.7]} 6... Be7 {[%clk 0:04:51.6]}
7. c4 {[%clk 0:04:43.6]} 7... Bg4 {[%clk 0:04:48.7]} 8. h3 {[%clk 0:04:41]} 8...
Bxf3 {[%clk 0:04:46.7]} 9. Qxf3 {[%clk 0:04:39.7]} 9... O-O {[%clk 0:04:46.1]}
10. Be3 {[%clk 0:04:33.8]} 10... Nd7 {[%clk 0:04:33.7]} 11. Bxc6 {[%clk
0:04:30]} 11... bxc6 {[%clk 0:04:33.6]} 12. Qg4 {[%clk 0:04:28.7]} 12... Nf6
{[%clk 0:04:28.1]} 13. Qe2 {[%clk 0:04:26.7]} 13... c5 {[%clk 0:04:25.7]} 14.
Nc3 {[%clk 0:04:25]} 14... c6 {[%clk 0:04:23.1]} 15. Kh1 {[%clk 0:04:14.6]}
15... Nd7 {[%clk 0:04:17.4]} 16. Qg4 {[%clk 0:04:12.4]} 16... Nf6 {[%clk
0:04:15]} 17. Qg3 {[%clk 0:04:10]} 17... Kh8 {[%clk 0:03:57]} 18. Rae1 {[%clk
0:04:06.2]} 18... Ng8 {[%clk 0:03:51.9]} 19. Qg4 {[%clk 0:04:00.2]} 19... Nf6
{[%clk 0:03:49.2]} 20. Qd1 {[%clk 0:03:59.1]} 20... Ng8 {[%clk 0:03:47.2]} 21.
f4 {[%clk 0:03:57.3]} 21... f6 {[%clk 0:03:41.8]} 22. Ne2 {[%clk 0:03:50.7]}
22... Qe8 {[%clk 0:03:35.5]} 23. Ng3 {[%clk 0:03:47.7]} 23... Nh6 {[%clk
0:03:20.9]} 24. fxe5 {[%clk 0:03:45.5]} 24... fxe5 {[%clk 0:03:19.6]} 25. Bxh6
{[%clk 0:03:45]} 25... gxh6 {[%clk 0:03:18.4]} 26. Nf5 {[%clk 0:03:43.9]} 26...
Rf6 {[%clk 0:03:03.9]} 27. Rf3 {[%clk 0:03:41.8]} 27... Rg6 {[%clk 0:02:59.8]}
28. Ref1 {[%clk 0:03:40.9]} 28... Qd7 {[%clk 0:02:51.8]} 29. Qd2 {[%clk
0:03:24.1]} 29... Bg5 {[%clk 0:02:49.4]} 30. Qf2 {[%clk 0:03:19.6]} 30... Rag8
{[%clk 0:02:42.5]} 31. g3 {[%clk 0:03:18.3]} 31... Qe6 {[%clk 0:02:32.9]} 32. h4
{[%clk 0:03:16.8]} 32... Be7 {[%clk 0:02:27]} 33. Kh2 {[%clk 0:03:15.7]} 33...
Qd7 {[%clk 0:02:20.8]} 34. b3 {[%clk 0:03:13.2]} 34... Bd8 {[%clk 0:02:02.7]}
35. Qe3 {[%clk 0:03:11]} 35... h5 {[%clk 0:01:52.6]} 36. Qe2 {[%clk 0:02:59.3]}
36... Qe6 {[%clk 0:01:48]} 37. Re3 {[%clk 0:02:57.8]} 37... Rg4 {[%clk
0:01:39.3]} 38. Ref3 {[%clk 0:02:49.4]} 38... Be7 {[%clk 0:01:30.9]} 39. R1f2
{[%clk 0:02:46.5]} 39... Qd7 {[%clk 0:01:28.2]} 40. Rg2 {[%clk 0:02:39.2]} 40...
Qe6 {[%clk 0:01:26.5]} 41. Ne3 {[%clk 0:02:37.5]} 41... Bf6 {[%clk 0:01:22]} 42.
Nxg4 {[%clk 0:02:34.4]} 42... hxg4 {[%clk 0:01:18.6]} 43. Rf5 {[%clk 0:02:32.9]}
43... Be7 {[%clk 0:01:13.7]} 44. Rgf2 {[%clk 0:02:32.5]} 44... Qg6 {[%clk
0:01:10.4]} 45. h5 {[%clk 0:02:30.8]} 45... Qe8 {[%clk 0:01:06.6]} 46. Rf7
{[%clk 0:02:28]} 46... Rf8 {[%clk 0:01:01.2]} 47. Rxf8+ {[%clk 0:02:25.6]} 47...
Qxf8 {[%clk 0:01:00.3]} 48. Rxf8+ {[%clk 0:02:22.4]} 1-0

[Event "Live Chess"]
[Site "Chess.com"]
[Date "2023.05.21"]
[Round "-"]
[White "defenderalist"]
[Black "WilliWeisswurst"]
[Result "0-1"]
[WhiteElo "1651"]
[BlackElo "1775"]
[TimeControl "300"]
[EndTime "4:18:23 PDT"]
[Termination "WilliWeisswurst won by resignation"]

1. e4 {[%clk 0:04:57.4]} 1... c5 {[%clk 0:04:59.4]} 2. Nf3 {[%clk 0:04:56.1]}
2... d6 {[%clk 0:04:58.3]} 3. d4 {[%clk 0:04:55.3]} 3... cxd4 {[%clk 0:04:57.3]}
4. Nxd4 {[%clk 0:04:55.2]} 4... Nf6 {[%clk 0:04:56.7]} 5. Nc3 {[%clk 0:04:54.3]}
5... a6 {[%clk 0:04:56.4]} 6. g3 {[%clk 0:04:52.8]} 6... e6 {[%clk 0:04:54.6]}
7. Bg2 {[%clk 0:04:52]} 7... Be7 {[%clk 0:04:54.2]} 8. O-O {[%clk 0:04:50.7]}
8... O-O {[%clk 0:04:53.8]} 9. b3 {[%clk 0:04:48]} 9... Bd7 {[%clk 0:04:51.3]}
10. Bb2 {[%clk 0:04:46.9]} 10... Nc6 {[%clk 0:04:48.4]} 11. Nde2 {[%clk
0:04:45.7]} 11... Rc8 {[%clk 0:04:45.2]} 12. f4 {[%clk 0:04:45]} 12... b5 {[%clk
0:04:44.1]} 13. f5 {[%clk 0:04:32.9]} 13... exf5 {[%clk 0:04:36.9]} 14. exf5
{[%clk 0:04:32.1]} 14... Ng4 {[%clk 0:04:33.5]} 15. Nd4 {[%clk 0:04:30.7]} 15...
Ne3 {[%clk 0:04:28.7]} 16. Nxc6 {[%clk 0:04:26.7]} 16... Bxc6 {[%clk 0:04:26.5]}
17. Qd4 {[%clk 0:04:21.1]} 17... Nxc2 {[%clk 0:04:03.6]} 18. Qg4 {[%clk
0:04:07]} 18... Ne3 {[%clk 0:03:57.2]} 19. Qd4 {[%clk 0:04:02.5]} 19... Bxg2
{[%clk 0:03:47.5]} 20. Ne4 {[%clk 0:03:37.2]} 20... f6 {[%clk 0:03:20.1]} 21.
Qxe3 {[%clk 0:03:32.6]} 21... Bxf1 {[%clk 0:03:14.8]} 22. Rxf1 {[%clk
0:03:31.3]} 22... d5 {[%clk 0:03:13.5]} 23. Nf2 {[%clk 0:03:21.7]} 23... Bc5
{[%clk 0:03:04.4]} 24. Qd3 {[%clk 0:03:15.1]} 24... Re8 {[%clk 0:02:58.2]} 25.
Kg2 {[%clk 0:03:13]} 25... Bxf2 {[%clk 0:02:54.1]} 26. Rxf2 {[%clk 0:03:11.9]}
26... Qd6 {[%clk 0:02:43.2]} 27. g4 {[%clk 0:03:07.7]} 27... Re4 {[%clk
0:02:36.6]} 28. h3 {[%clk 0:02:51.9]} 28... Rce8 {[%clk 0:02:33.3]} 29. g5
{[%clk 0:02:48.2]} 29... Re3 {[%clk 0:02:28.4]} 30. Qd4 {[%clk 0:02:46.6]} 30...
Qg3+ {[%clk 0:02:26.3]} 31. Kf1 {[%clk 0:02:44.6]} 31... Qxh3+ {[%clk
0:02:21.4]} 0-1

[Event "Live Chess"]
[Site "Chess.com"]
[Date "2023.05.21"]
[Round "-"]
[White "Conradical12"]
[Black "viktorskliarov"]
[Result "0-1"]
[WhiteElo "1565"]
[BlackElo "2653"]
[TimeControl "300"]
[EndTime "4:18:30 PDT"]
[Termination "viktorskliarov won by resignation"]

1. e4 {[%clk 0:04:57.2]} 1... c5 {[%clk 0:04:55.5]} 2. d4 {[%clk 0:04:54.5]}
2... cxd4 {[%clk 0:04:51.4]} 3. c3 {[%clk 0:04:54.4]} 3... Nf6 {[%clk
0:04:49.3]} 4. e5 {[%clk 0:04:51.3]} 4... Nd5 {[%clk 0:04:47.6]} 5. cxd4 {[%clk
0:04:50.5]} 5... d6 {[%clk 0:04:45.4]} 6. Nf3 {[%clk 0:04:49.2]} 6... Nc6 {[%clk
0:04:43.7]} 7. Bb5 {[%clk 0:04:47.6]} 7... Qa5+ {[%clk 0:04:35.6]} 8. Nc3 {[%clk
0:04:40.5]} 8... Nxc3 {[%clk 0:04:34.5]} 9. bxc3 {[%clk 0:04:39.5]} 9... Qxb5
{[%clk 0:04:33]} 10. Be3 {[%clk 0:04:35]} 10... e6 {[%clk 0:04:22]} 11. Rb1
{[%clk 0:04:32.8]} 11... Qa6 {[%clk 0:04:20.7]} 12. Ng5 {[%clk 0:04:17.7]} 12...
Be7 {[%clk 0:04:05.7]} 13. Qh5 {[%clk 0:04:13.1]} 13... Bxg5 {[%clk 0:03:59.7]}
14. Bxg5 {[%clk 0:04:11.3]} 14... dxe5 {[%clk 0:03:56.4]} 15. dxe5 {[%clk
0:04:05.8]} 15... Bd7 {[%clk 0:03:54]} 16. Rd1 {[%clk 0:03:59]} 16... Nxe5
{[%clk 0:03:49.5]} 17. Bd8 {[%clk 0:03:47.2]} 17... Nd3+ {[%clk 0:03:42.8]} 0-1